[Event "*** Titled Tuesday Blitz"]
[Site "Chess.com"]
[Date "2019.04.02"]
[Round "6"]
[White "Roenko_Artur"]
[Black "krzysztofszczurek"]
[Result "1-0"]
[WhiteElo "2300"]
[BlackElo "2389"]
[TimeControl "180+2"]
[EndTime "15:16:02 PDT"]
[Termination "Roenko_Artur won by checkmate"]

1. e4 {[%clk 0:03:01.9]} 1... c5 {[%clk 0:02:58.8]} 2. d4 {[%clk 0:02:52.3]}
2... cxd4 {[%clk 0:02:56.4]} 3. c3 {[%clk 0:02:53.5]} 3... dxc3 {[%clk
0:02:57.3]} 4. Nxc3 {[%clk 0:02:55.4]} 4... d6 {[%clk 0:02:58.4]} 5. Nf3 {[%clk
0:02:56.4]} 5... Nc6 {[%clk 0:02:53.3]} 6. Bc4 {[%clk 0:02:56.9]} 6... Nf6
{[%clk 0:02:48.9]} 7. e5 {[%clk 0:02:57.6]} 7... dxe5 {[%clk 0:02:43]} 8. Qxd8+
{[%clk 0:02:55]} 8... Kxd8 {[%clk 0:02:32.7]} 9. Ng5 {[%clk 0:02:44.2]} 9... Kc7
{[%clk 0:02:23.7]} 10. Nxf7 {[%clk 0:02:42.1]} 10... Rg8 {[%clk 0:02:24.5]} 11.
Nb5+ {[%clk 0:02:33.6]} 11... Kb6 {[%clk 0:02:22.8]} 12. Be3+ {[%clk 0:02:30.7]}
12... Ka5 {[%clk 0:02:23.9]} 13. a3 {[%clk 0:02:02.6]} 13... a6 {[%clk
0:02:18.5]} 14. b4+ {[%clk 0:01:55.5]} 14... Nxb4 {[%clk 0:02:17.4]} 15. axb4+
{[%clk 0:01:54.4]} 15... Kxb4 {[%clk 0:02:17.7]} 16. Nxe5 {[%clk 0:01:44.3]}
16... e6 {[%clk 0:02:10]} 17. Rb1+ {[%clk 0:01:33.1]} 17... Ka5 {[%clk
0:02:05.1]} 18. Nc7 {[%clk 0:01:29.1]} 18... Rb8 {[%clk 0:02:05.6]} 19. Bd2+
{[%clk 0:00:58.3]} 19... Ka4 {[%clk 0:02:05.6]} 20. Bb3+ {[%clk 0:00:57.8]}
20... Ka3 {[%clk 0:02:06.8]} 21. Nc4# {[%clk 0:00:57.1]} 1-0

[Event "*** Titled Tuesday Blitz"]
[Site "Chess.com"]
[Date "2019.04.02"]
[Round "6"]
[White "mbojan"]
[Black "PowerThinking2650"]
[Result "1-0"]
[WhiteElo "2507"]
[BlackElo "2386"]
[TimeControl "180+2"]
[EndTime "15:16:29 PDT"]
[Termination "mbojan won by resignation"]

1. e4 {[%clk 0:03:01.9]} 1... e5 {[%clk 0:03:00.1]} 2. Nf3 {[%clk 0:03:02.1]}
2... Nc6 {[%clk 0:03:01]} 3. Bb5 {[%clk 0:03:02.7]} 3... a6 {[%clk 0:03:02]} 4.
Ba4 {[%clk 0:03:03.5]} 4... Nf6 {[%clk 0:03:02.5]} 5. O-O {[%clk 0:03:05.2]}
5... Be7 {[%clk 0:03:02.5]} 6. Re1 {[%clk 0:03:06.2]} 6... b5 {[%clk 0:03:03.5]}
7. Bb3 {[%clk 0:03:07.4]} 7... O-O {[%clk 0:03:01.8]} 8. c3 {[%clk 0:03:07.9]}
8... d6 {[%clk 0:03:01.9]} 9. h3 {[%clk 0:03:07.6]} 9... Bb7 {[%clk 0:03:02.3]}
10. d4 {[%clk 0:03:08.3]} 10... Re8 {[%clk 0:03:02.9]} 11. Nbd2 {[%clk 0:03:09]}
11... Bf8 {[%clk 0:03:03.5]} 12. Bc2 {[%clk 0:03:10.5]} 12... Nb8 {[%clk
0:02:58.2]} 13. a4 {[%clk 0:03:09.3]} 13... Nbd7 {[%clk 0:02:58.2]} 14. dxe5
{[%clk 0:03:06.6]} 14... dxe5 {[%clk 0:02:55.1]} 15. Qe2 {[%clk 0:03:06.8]}
15... c6 {[%clk 0:02:51.6]} 16. Nf1 {[%clk 0:03:03.6]} 16... Nc5 {[%clk
0:02:42.6]} 17. Ng3 {[%clk 0:03:00.6]} 17... bxa4 {[%clk 0:02:28.4]} 18. Bxa4
{[%clk 0:02:59.2]} 18... Nxa4 {[%clk 0:02:28.7]} 19. Rxa4 {[%clk 0:03:01.1]}
19... c5 {[%clk 0:02:24.8]} 20. Bg5 {[%clk 0:02:51.8]} 20... h6 {[%clk
0:02:16.3]} 21. Bxf6 {[%clk 0:02:49]} 21... Qxf6 {[%clk 0:02:16.7]} 22. Nf5
{[%clk 0:02:49.9]} 22... g6 {[%clk 0:02:14.6]} 23. Ne3 {[%clk 0:02:50.2]} 23...
Bc6 {[%clk 0:02:06.1]} 24. Rxa6 {[%clk 0:02:48.4]} 24... Rxa6 {[%clk 0:01:53.1]}
25. Qxa6 {[%clk 0:02:50.3]} 25... Re6 {[%clk 0:01:50.4]} 26. Qc4 {[%clk
0:02:48.6]} 26... h5 {[%clk 0:01:37.8]} 27. Nd5 {[%clk 0:02:47.8]} 27... Qd8
{[%clk 0:01:38]} 28. Rd1 {[%clk 0:02:46.4]} 28... Qb8 {[%clk 0:01:30.3]} 29. Ng5
{[%clk 0:02:38.5]} 29... Bxd5 {[%clk 0:01:11]} 30. Rxd5 {[%clk 0:02:34.3]} 30...
Be7 {[%clk 0:01:01.3]} 31. Nxe6 {[%clk 0:02:34.3]} 1-0

[Event "*** Titled Tuesday Blitz"]
[Site "Chess.com"]
[Date "2019.04.02"]
[Round "6"]
[White "Benjoneliere44"]
[Black "Walter_White_Poland"]
[Result "1-0"]
[WhiteElo "2485"]
[BlackElo "2250"]
[TimeControl "180+2"]
[EndTime "15:16:36 PDT"]
[Termination "Benjoneliere44 won on time"]

1. d4 {[%clk 0:03:01.9]} 1... Nf6 {[%clk 0:03:00.8]} 2. Bf4 {[%clk 0:03:00.9]}
2... c5 {[%clk 0:03:01.5]} 3. d5 {[%clk 0:02:58.1]} 3... Qb6 {[%clk 0:02:33.6]}
4. Nc3 {[%clk 0:02:57.5]} 4... Qxb2 {[%clk 0:02:31.1]} 5. Bd2 {[%clk 0:02:57.6]}
5... Qb6 {[%clk 0:02:14.1]} 6. e4 {[%clk 0:02:56.7]} 6... d6 {[%clk 0:02:13.8]}
7. f4 {[%clk 0:02:57.5]} 7... Bg4 {[%clk 0:02:06.7]} 8. Be2 {[%clk 0:02:51]}
8... Bxe2 {[%clk 0:02:05.8]} 9. Qxe2 {[%clk 0:02:52.9]} 9... e6 {[%clk
0:00:54.6]} 10. Nf3 {[%clk 0:02:34.5]} 10... Be7 {[%clk 0:00:53.9]} 11. dxe6
{[%clk 0:02:20.4]} 11... O-O {[%clk 0:00:33.5]} 12. exf7+ {[%clk 0:02:20.1]}
12... Rxf7 {[%clk 0:00:34.5]} 13. Rb1 {[%clk 0:02:16.8]} 13... Qc6 {[%clk
0:00:19.7]} 14. O-O {[%clk 0:02:11.7]} 14... Nbd7 {[%clk 0:00:20.7]} 15. e5
{[%clk 0:02:08.2]} 15... dxe5 {[%clk 0:00:04.9]} 16. fxe5 {[%clk 0:02:10.1]} 1-0

[Event "*** Titled Tuesday Blitz"]
[Site "Chess.com"]
[Date "2019.04.02"]
[Round "6"]
[White "r31415"]
[Black "stepanosinovsky"]
[Result "0-1"]
[WhiteElo "2335"]
[BlackElo "2328"]
[TimeControl "180+2"]
[EndTime "15:16:57 PDT"]
[Termination "stepanosinovsky won by checkmate"]

1. e4 {[%clk 0:03:01.9]} 1... e5 {[%clk 0:03:00]} 2. Nf3 {[%clk 0:03:03]} 2...
Nc6 {[%clk 0:03:01.6]} 3. Bc4 {[%clk 0:03:03.4]} 3... Nf6 {[%clk 0:03:02.2]} 4.
d3 {[%clk 0:03:04.3]} 4... Be7 {[%clk 0:03:02.5]} 5. a4 {[%clk 0:03:02.9]} 5...
O-O {[%clk 0:03:03.3]} 6. O-O {[%clk 0:03:03.2]} 6... d5 {[%clk 0:03:01.4]} 7.
exd5 {[%clk 0:03:03.5]} 7... Nxd5 {[%clk 0:03:03.3]} 8. Re1 {[%clk 0:03:03.9]}
8... Bg4 {[%clk 0:03:03.7]} 9. h3 {[%clk 0:03:05.3]} 9... Bh5 {[%clk 0:03:04.8]}
10. g4 {[%clk 0:02:50.8]} 10... Bg6 {[%clk 0:03:05.2]} 11. Nxe5 {[%clk 0:02:52]}
11... Nxe5 {[%clk 0:03:05.9]} 12. Rxe5 {[%clk 0:02:53.9]} 12... Nb6 {[%clk
0:03:04]} 13. Bb3 {[%clk 0:02:42.9]} 13... Kh8 {[%clk 0:03:04.3]} 14. Nd2 {[%clk
0:02:33.2]} 14... f5 {[%clk 0:03:00.1]} 15. Nf1 {[%clk 0:02:20.5]} 15... Bd6
{[%clk 0:02:52.5]} 16. Re1 {[%clk 0:02:12]} 16... Qh4 {[%clk 0:02:52.7]} 17. g5
{[%clk 0:01:26.6]} 17... Bh5 {[%clk 0:02:39.6]} 18. Qd2 {[%clk 0:01:16.4]} 18...
f4 {[%clk 0:02:28.8]} 19. Qa5 {[%clk 0:00:56.6]} 19... Qxh3 {[%clk 0:02:17.2]}
20. Be6 {[%clk 0:00:46.7]} 20... Bg4 {[%clk 0:02:08.4]} 21. Bxg4 {[%clk
0:00:24.4]} 21... Qxg4+ {[%clk 0:02:10.3]} 22. Kh1 {[%clk 0:00:25.3]} 22... f3
{[%clk 0:01:59.7]} 23. Ne3 {[%clk 0:00:24.8]} 23... Qh3+ {[%clk 0:02:00.1]} 24.
Kg1 {[%clk 0:00:25.9]} 24... Qh2+ {[%clk 0:01:57.9]} 25. Kf1 {[%clk 0:00:27.8]}
25... Qh1# {[%clk 0:01:59.2]} 0-1

[Event "*** Titled Tuesday Blitz"]
[Site "Chess.com"]
[Date "2019.04.02"]
[Round "6"]
[White "StephenDedalus83"]
[Black "advantageLucy"]
[Result "1-0"]
[WhiteElo "2652"]
[BlackElo "2495"]
[TimeControl "180+2"]
[EndTime "15:17:18 PDT"]
[Termination "StephenDedalus83 won by resignation"]

1. e4 {[%clk 0:03:01.9]} 1... e6 {[%clk 0:03:00.9]} 2. d4 {[%clk 0:03:02.3]}
2... d5 {[%clk 0:03:02.2]} 3. Nc3 {[%clk 0:03:03.6]} 3... Bb4 {[%clk 0:03:03]}
4. e5 {[%clk 0:03:05]} 4... c5 {[%clk 0:03:04]} 5. a3 {[%clk 0:03:06.2]} 5...
Bxc3+ {[%clk 0:03:05.4]} 6. bxc3 {[%clk 0:03:08.1]} 6... Qa5 {[%clk 0:03:03.9]}
7. Bd2 {[%clk 0:03:07.8]} 7... Qa4 {[%clk 0:03:01.8]} 8. Qb1 {[%clk 0:03:08.7]}
8... c4 {[%clk 0:03:02.6]} 9. h4 {[%clk 0:03:09.8]} 9... Ne7 {[%clk 0:03:00.4]}
10. h5 {[%clk 0:03:10.8]} 10... h6 {[%clk 0:03:01.6]} 11. g4 {[%clk 0:03:11.9]}
11... Nbc6 {[%clk 0:03:02.5]} 12. Bh3 {[%clk 0:03:12.7]} 12... Bd7 {[%clk
0:03:00.7]} 13. Ne2 {[%clk 0:03:13.4]} 13... O-O-O {[%clk 0:03:01.6]} 14. Be3
{[%clk 0:03:13.9]} 14... Kb8 {[%clk 0:03:02.3]} 15. Kd2 {[%clk 0:03:14.5]} 15...
Ka8 {[%clk 0:03:03.4]} 16. Qb2 {[%clk 0:03:13.6]} 16... g5 {[%clk 0:02:49.2]}
17. hxg6 {[%clk 0:03:12.6]} 17... fxg6 {[%clk 0:02:48.6]} 18. g5 {[%clk
0:03:10.9]} 18... h5 {[%clk 0:02:47.1]} 19. Nf4 {[%clk 0:03:11.6]} 19... Nf5
{[%clk 0:02:35]} 20. Nxg6 {[%clk 0:03:06.9]} 20... Rhg8 {[%clk 0:02:28.3]} 21.
Bxf5 {[%clk 0:03:06.9]} 21... exf5 {[%clk 0:02:29.1]} 22. Nf4 {[%clk 0:03:04.8]}
22... Be8 {[%clk 0:01:34.3]} 23. Ne6 {[%clk 0:02:57.2]} 23... Qa5 {[%clk
0:01:11.5]} 24. Nxd8 {[%clk 0:02:49.6]} 24... Qxd8 {[%clk 0:01:13.4]} 25. Rab1
{[%clk 0:02:47.7]} 25... b6 {[%clk 0:01:14.1]} 26. a4 {[%clk 0:02:46.9]} 26...
f4 {[%clk 0:01:13.7]} 27. Bxf4 {[%clk 0:02:47.2]} 27... Bg6 {[%clk 0:01:14.9]}
28. Qa3 {[%clk 0:02:46.1]} 28... Rf8 {[%clk 0:01:02.3]} 29. Be3 {[%clk
0:02:46.5]} 29... Qc8 {[%clk 0:00:32.7]} 30. Qd6 {[%clk 0:02:43.4]} 30... Be4
{[%clk 0:00:32.8]} 31. Rxh5 {[%clk 0:02:42.5]} 31... Rd8 {[%clk 0:00:29.2]} 32.
Qh6 {[%clk 0:02:39.6]} 32... Ne7 {[%clk 0:00:27.1]} 33. a5 {[%clk 0:02:38.6]}
33... Nf5 {[%clk 0:00:22.1]} 34. Qf6 {[%clk 0:02:32.7]} 34... Rf8 {[%clk
0:00:21.5]} 35. axb6 {[%clk 0:02:33.3]} 35... axb6 {[%clk 0:00:20.3]} 1-0

[Event "*** Titled Tuesday Blitz"]
[Site "Chess.com"]
[Date "2019.04.02"]
[Round "6"]
[White "MatthewG-p4p"]
[Black "ShimanovAlex"]
[Result "1-0"]
[WhiteElo "2694"]
[BlackElo "2843"]
[TimeControl "180+2"]
[EndTime "15:17:32 PDT"]
[Termination "MatthewG-p4p won by resignation"]

1. Nf3 {[%clk 0:03:01.9]} 1... d5 {[%clk 0:02:48.5]} 2. b3 {[%clk 0:03:02.8]}
2... Nf6 {[%clk 0:02:44.4]} 3. Bb2 {[%clk 0:03:03.3]} 3... c6 {[%clk 0:02:45.1]}
4. e3 {[%clk 0:03:02.3]} 4... Bg4 {[%clk 0:02:45.5]} 5. c4 {[%clk 0:03:02.4]}
5... e6 {[%clk 0:02:45.9]} 6. Be2 {[%clk 0:02:55.9]} 6... Nbd7 {[%clk 0:02:44]}
7. O-O {[%clk 0:02:56.5]} 7... Bd6 {[%clk 0:02:44.9]} 8. h3 {[%clk 0:02:57]}
8... Bh5 {[%clk 0:02:44.4]} 9. d3 {[%clk 0:02:55.7]} 9... O-O {[%clk 0:02:44.3]}
10. Re1 {[%clk 0:02:56.6]} 10... Qe7 {[%clk 0:02:44]} 11. a3 {[%clk 0:02:55.6]}
11... e5 {[%clk 0:02:44.3]} 12. Nc3 {[%clk 0:02:43.4]} 12... a6 {[%clk
0:02:38.4]} 13. Nh4 {[%clk 0:02:40.2]} 13... Bg6 {[%clk 0:02:38.2]} 14. Nxg6
{[%clk 0:02:39.5]} 14... hxg6 {[%clk 0:02:40.1]} 15. b4 {[%clk 0:02:37.8]} 15...
e4 {[%clk 0:02:37.2]} 16. cxd5 {[%clk 0:02:36.7]} 16... cxd5 {[%clk 0:02:37.5]}
17. dxe4 {[%clk 0:02:37]} 17... dxe4 {[%clk 0:02:39.4]} 18. Qb3 {[%clk
0:02:30.2]} 18... Qe5 {[%clk 0:02:32.7]} 19. g3 {[%clk 0:02:31.3]} 19... Qg5
{[%clk 0:02:31.7]} 20. Kg2 {[%clk 0:02:26.2]} 20... Ne5 {[%clk 0:02:25.8]} 21.
Rad1 {[%clk 0:02:25.7]} 21... Rad8 {[%clk 0:02:24.1]} 22. Nd5 {[%clk 0:02:21.6]}
22... Nh5 {[%clk 0:01:46.2]} 23. h4 {[%clk 0:02:09.6]} 23... Qf5 {[%clk
0:01:43.2]} 24. Nf4 {[%clk 0:02:01.4]} 24... Ng4 {[%clk 0:01:18.3]} 25. Rd5
{[%clk 0:01:49.2]} 25... Nxf4+ {[%clk 0:01:16.6]} 26. exf4 {[%clk 0:01:47.1]}
26... Qc8 {[%clk 0:01:16.9]} 27. Bxg4 {[%clk 0:01:33]} 27... Qxg4 {[%clk
0:01:17.2]} 28. Rxe4 {[%clk 0:01:34.3]} 28... Bc7 {[%clk 0:01:08.3]} 29. Rg5
{[%clk 0:01:29.2]} 29... Qd1 {[%clk 0:01:04.7]} 30. Qc3 {[%clk 0:01:28.8]} 30...
f6 {[%clk 0:01:05.3]} 31. Qxc7 {[%clk 0:01:22.1]} 31... Qc1 {[%clk 0:01:01.5]}
32. Bxc1 {[%clk 0:01:22]} 1-0

[Event "*** Titled Tuesday Blitz"]
[Site "Chess.com"]
[Date "2019.04.02"]
[Round "6"]
[White "12teen"]
[Black "DiogenesSinopeus"]
[Result "1-0"]
[WhiteElo "2646"]
[BlackElo "2429"]
[TimeControl "180+2"]
[EndTime "15:17:35 PDT"]
[Termination "12teen won by resignation"]

1. e4 {[%clk 0:03:01.9]} 1... e5 {[%clk 0:03:01.1]} 2. Nc3 {[%clk 0:03:03]} 2...
Nc6 {[%clk 0:03:02.4]} 3. g3 {[%clk 0:03:03.9]} 3... Nf6 {[%clk 0:03:01.5]} 4.
Bg2 {[%clk 0:03:05.8]} 4... Bc5 {[%clk 0:03:01.7]} 5. d3 {[%clk 0:03:06.7]} 5...
d6 {[%clk 0:02:59.5]} 6. h3 {[%clk 0:03:08]} 6... a6 {[%clk 0:03:00.6]} 7. f4
{[%clk 0:03:08.9]} 7... h5 {[%clk 0:02:44.4]} 8. Nf3 {[%clk 0:03:09.5]} 8... h4
{[%clk 0:02:38.5]} 9. g4 {[%clk 0:03:09.9]} 9... Bxg4 {[%clk 0:02:34.5]} 10.
hxg4 {[%clk 0:03:07.1]} 10... Nxg4 {[%clk 0:02:36.4]} 11. Qe2 {[%clk 0:03:04.5]}
11... Nf2 {[%clk 0:02:25.4]} 12. Rf1 {[%clk 0:03:01.8]} 12... h3 {[%clk
0:02:14.7]} 13. Bh1 {[%clk 0:03:02.8]} 13... Ng4 {[%clk 0:02:08.9]} 14. Ng5
{[%clk 0:02:54.2]} 14... Rh4 {[%clk 0:01:46.8]} 15. Nf3 {[%clk 0:02:35.4]} 15...
Rh8 {[%clk 0:01:46.1]} 16. Nd5 {[%clk 0:02:32.8]} 16... Qd7 {[%clk 0:01:21.7]}
17. Bd2 {[%clk 0:02:21.4]} 17... O-O-O {[%clk 0:01:12.1]} 18. O-O-O {[%clk
0:02:22.6]} 18... f6 {[%clk 0:01:08.1]} 19. f5 {[%clk 0:02:15.6]} 19... g5
{[%clk 0:00:59.7]} 20. Nxg5 {[%clk 0:02:03.3]} 20... Rdg8 {[%clk 0:00:54.7]} 21.
Qxg4 {[%clk 0:01:59.3]} 21... Nd4 {[%clk 0:00:51.1]} 22. c3 {[%clk 0:01:40.2]}
22... Qa4 {[%clk 0:00:38.6]} 23. cxd4 {[%clk 0:01:41.1]} 23... Qxa2 {[%clk
0:00:39.4]} 24. Nc3 {[%clk 0:01:15.8]} 24... Qb3 {[%clk 0:00:34.3]} 25. dxc5
{[%clk 0:01:14.1]} 1-0

[Event "*** Titled Tuesday Blitz"]
[Site "Chess.com"]
[Date "2019.04.02"]
[Round "6"]
[White "Gahan-MG"]
[Black "lachesisQ"]
[Result "0-1"]
[WhiteElo "2572"]
[BlackElo "3010"]
[TimeControl "180+2"]
[EndTime "15:17:39 PDT"]
[Termination "lachesisQ won by resignation"]

1. e4 {[%clk 0:03:01.9]} 1... c5 {[%clk 0:03:00.9]} 2. c3 {[%clk 0:03:02.7]}
2... Nf6 {[%clk 0:03:00.2]} 3. e5 {[%clk 0:03:03.5]} 3... Nd5 {[%clk 0:03:01.6]}
4. d4 {[%clk 0:03:05.4]} 4... e6 {[%clk 0:03:03]} 5. Nf3 {[%clk 0:03:06.3]} 5...
cxd4 {[%clk 0:03:03.8]} 6. cxd4 {[%clk 0:03:07.8]} 6... d6 {[%clk 0:03:05.1]} 7.
a3 {[%clk 0:03:09.1]} 7... Nc6 {[%clk 0:03:05.3]} 8. Bd3 {[%clk 0:03:10.1]} 8...
Be7 {[%clk 0:03:05.7]} 9. O-O {[%clk 0:03:11.1]} 9... O-O {[%clk 0:03:07]} 10.
Qe2 {[%clk 0:03:12.5]} 10... Bd7 {[%clk 0:03:06.2]} 11. Qe4 {[%clk 0:03:13.3]}
11... f5 {[%clk 0:03:07.4]} 12. exf6 {[%clk 0:03:13.3]} 12... Nxf6 {[%clk
0:03:08]} 13. Qh4 {[%clk 0:03:14.5]} 13... d5 {[%clk 0:02:34.6]} 14. Bg5 {[%clk
0:02:54.4]} 14... h6 {[%clk 0:02:32.9]} 15. Bxf6 {[%clk 0:02:23.6]} 15... Bxf6
{[%clk 0:02:27]} 16. Qg3 {[%clk 0:02:14.5]} 16... Nxd4 {[%clk 0:02:21.2]} 17.
Nxd4 {[%clk 0:02:14.3]} 17... Bxd4 {[%clk 0:02:23.1]} 18. Nd2 {[%clk 0:02:03.5]}
18... Qg5 {[%clk 0:02:20]} 19. Qxg5 {[%clk 0:01:52.9]} 19... hxg5 {[%clk
0:02:21.9]} 20. Nf3 {[%clk 0:01:52.6]} 20... Bf6 {[%clk 0:02:15.5]} 21. Rae1
{[%clk 0:01:52.2]} 21... Kf7 {[%clk 0:01:35.8]} 22. Ne5+ {[%clk 0:01:48.4]}
22... Bxe5 {[%clk 0:01:36.8]} 23. Rxe5 {[%clk 0:01:50.3]} 23... Kf6 {[%clk
0:01:38.4]} 24. Rfe1 {[%clk 0:01:47.8]} 24... Rac8 {[%clk 0:01:38.9]} 25. h3
{[%clk 0:01:40.2]} 25... Rc5 {[%clk 0:01:38]} 26. R5e3 {[%clk 0:01:37.6]} 26...
Rfc8 {[%clk 0:01:35.4]} 27. Rf3+ {[%clk 0:01:36.4]} 27... Ke7 {[%clk 0:01:36.6]}
28. Re5 {[%clk 0:01:29.3]} 28... d4 {[%clk 0:01:27.5]} 29. Re4 {[%clk
0:01:16.9]} 29... Bc6 {[%clk 0:01:24.4]} 30. Rxd4 {[%clk 0:00:51.3]} 30... Bxf3
{[%clk 0:01:24.2]} 31. gxf3 {[%clk 0:00:53.2]} 31... Rd5 {[%clk 0:01:25.4]} 0-1

[Event "*** Titled Tuesday Blitz"]
[Site "Chess.com"]
[Date "2019.04.02"]
[Round "6"]
[White "Last7Samurai"]
[Black "Miguelito"]
[Result "1/2-1/2"]
[WhiteElo "2738"]
[BlackElo "2647"]
[TimeControl "180+2"]
[EndTime "15:17:47 PDT"]
[Termination "Game drawn by repetition"]

1. e4 {[%clk 0:03:01.9]} 1... c5 {[%clk 0:03:00.6]} 2. c3 {[%clk 0:03:02.1]}
2... Nf6 {[%clk 0:03:00.9]} 3. e5 {[%clk 0:03:03]} 3... Nd5 {[%clk 0:03:00.3]}
4. d4 {[%clk 0:03:04.3]} 4... cxd4 {[%clk 0:03:01.1]} 5. cxd4 {[%clk 0:03:06.2]}
5... d6 {[%clk 0:03:02]} 6. Nf3 {[%clk 0:03:07.8]} 6... Nc6 {[%clk 0:03:03]} 7.
Bc4 {[%clk 0:03:09.4]} 7... Nb6 {[%clk 0:03:03.8]} 8. Bb5 {[%clk 0:03:11.1]}
8... dxe5 {[%clk 0:03:05.3]} 9. Nxe5 {[%clk 0:03:13]} 9... Bd7 {[%clk
0:03:06.8]} 10. Nxd7 {[%clk 0:03:14.6]} 10... Qxd7 {[%clk 0:03:08.7]} 11. Nc3
{[%clk 0:03:16.1]} 11... e6 {[%clk 0:03:09.7]} 12. O-O {[%clk 0:03:17.6]} 12...
a6 {[%clk 0:03:10.6]} 13. Bxc6 {[%clk 0:03:16.6]} 13... Qxc6 {[%clk 0:03:12.2]}
14. Bg5 {[%clk 0:03:07.7]} 14... Bb4 {[%clk 0:03:00.5]} 15. Rc1 {[%clk
0:02:58.4]} 15... h6 {[%clk 0:02:56.6]} 16. d5 {[%clk 0:02:53.7]} 16... Nxd5
{[%clk 0:02:40.5]} 17. Ne4 {[%clk 0:02:36.7]} 17... Qd7 {[%clk 0:02:30]} 18. Qh5
{[%clk 0:02:34.6]} 18... Be7 {[%clk 0:02:22.5]} 19. Rfd1 {[%clk 0:02:23.5]}
19... Bxg5 {[%clk 0:02:07.3]} 20. Nxg5 {[%clk 0:02:24]} 20... O-O {[%clk
0:02:08.4]} 21. Ne4 {[%clk 0:02:16]} 21... Rac8 {[%clk 0:02:08.3]} 22. g3 {[%clk
0:02:05.9]} 22... Qa4 {[%clk 0:01:54.4]} 23. Nd6 {[%clk 0:02:02.1]} 23... Rxc1
{[%clk 0:01:47.3]} 24. Rxc1 {[%clk 0:02:03.1]} 24... Qxa2 {[%clk 0:01:02.5]} 25.
Rc8 {[%clk 0:01:55.9]} 25... Rxc8 {[%clk 0:01:00.8]} 26. Qxf7+ {[%clk
0:01:56.5]} 26... Kh7 {[%clk 0:01:02.2]} 27. Nxc8 {[%clk 0:01:55.7]} 27... Qb1+
{[%clk 0:01:02]} 28. Kg2 {[%clk 0:01:56.5]} 28... Qe4+ {[%clk 0:01:02.8]} 29.
Kg1 {[%clk 0:01:57]} 29... Qb1+ {[%clk 0:01:00.3]} 30. Kg2 {[%clk 0:01:57.9]}
30... Qg6 {[%clk 0:00:52.3]} 31. Qxb7 {[%clk 0:01:45.1]} 31... Qe4+ {[%clk
0:00:49.9]} 32. Kg1 {[%clk 0:01:42.7]} 32... Qe1+ {[%clk 0:00:49.4]} 33. Kg2
{[%clk 0:01:43.8]} 33... Qe4+ {[%clk 0:00:50.5]} 34. Kg1 {[%clk 0:01:44.6]}
34... Qe1+ {[%clk 0:00:50.1]} 35. Kg2 {[%clk 0:01:44.2]} 35... Ne3+ {[%clk
0:00:50]} 36. fxe3 {[%clk 0:01:43.6]} 36... Qe2+ {[%clk 0:00:51.6]} 37. Kg1
{[%clk 0:01:43.6]} 37... Qe1+ {[%clk 0:00:53]} 38. Kg2 {[%clk 0:01:45]} 38...
Qe2+ {[%clk 0:00:54.9]} 39. Kg1 {[%clk 0:01:46.4]} 39... Qe1+ {[%clk 0:00:56.2]}
40. Kg2 {[%clk 0:01:47.9]} 40... Qe2+ {[%clk 0:00:57.9]} 41. Kg1 {[%clk
0:01:48.8]} 41... Qe1+ {[%clk 0:00:59.1]} 1/2-1/2

[Event "*** Titled Tuesday Blitz"]
[Site "Chess.com"]
[Date "2019.04.02"]
[Round "6"]
[White "2nd_life"]
[Black "Maili15"]
[Result "1-0"]
[WhiteElo "2462"]
[BlackElo "2269"]
[TimeControl "180+2"]
[EndTime "15:17:48 PDT"]
[Termination "2nd_life won by resignation"]

1. e4 {[%clk 0:03:01.6]} 1... c5 {[%clk 0:03:00.4]} 2. Nf3 {[%clk 0:03:01.7]}
2... d6 {[%clk 0:03:01.2]} 3. d4 {[%clk 0:03:01.5]} 3... cxd4 {[%clk 0:03:02.3]}
4. Nxd4 {[%clk 0:03:03.4]} 4... Nf6 {[%clk 0:03:02.8]} 5. Nc3 {[%clk 0:03:04.5]}
5... a6 {[%clk 0:03:04]} 6. Be3 {[%clk 0:03:05.4]} 6... e5 {[%clk 0:03:03.3]} 7.
Nb3 {[%clk 0:03:05.7]} 7... Be6 {[%clk 0:03:04.4]} 8. Qd2 {[%clk 0:03:05.8]}
8... Be7 {[%clk 0:03:05.3]} 9. f4 {[%clk 0:02:59.1]} 9... Ng4 {[%clk 0:02:53.5]}
10. f5 {[%clk 0:02:45.9]} 10... Nxe3 {[%clk 0:02:52]} 11. Qxe3 {[%clk
0:02:15.5]} 11... Bg5 {[%clk 0:02:52.3]} 12. Qf3 {[%clk 0:01:59.2]} 12... Bc8
{[%clk 0:02:50.5]} 13. g3 {[%clk 0:01:47.9]} 13... b5 {[%clk 0:02:46.9]} 14. h4
{[%clk 0:01:46.1]} 14... Bf6 {[%clk 0:02:46.8]} 15. a4 {[%clk 0:01:44.5]} 15...
bxa4 {[%clk 0:02:45.5]} 16. Rxa4 {[%clk 0:01:43.2]} 16... Bb7 {[%clk 0:02:44.7]}
17. Bc4 {[%clk 0:01:41.1]} 17... Nd7 {[%clk 0:02:43.2]} 18. Rb4 {[%clk
0:01:19.7]} 18... Nb6 {[%clk 0:02:33.1]} 19. Na5 {[%clk 0:01:02.6]} 19... Nxc4
{[%clk 0:01:55.1]} 20. Nxb7 {[%clk 0:01:00]} 20... Qc7 {[%clk 0:01:54.8]} 21.
Qd3 {[%clk 0:00:54.5]} 21... Rb8 {[%clk 0:01:30.8]} 22. Nd5 {[%clk 0:00:38.2]}
22... Qc6 {[%clk 0:01:11.8]} 23. Qxc4 {[%clk 0:00:38.4]} 23... Qxc4 {[%clk
0:01:08.8]} 24. Rxc4 {[%clk 0:00:39.6]} 24... Rxb7 {[%clk 0:01:08.1]} 25. Nxf6+
{[%clk 0:00:40.1]} 1-0